bitfinex-derivatives/quotes_SOLF0:USTF0_20241120
["timestamp","ask_amount","ask_price","bid_price","bid_amount"]
[1732110906277,10.17515153,237.86,237.79,2.6]
[1732110906779,10.17515153,237.89,237.81,2.1002]
[1732110907071,10.17515153,237.89,237.79,2.6]
[1732110907270,14.09875153,237.92,237.79,2.6]
[1732110907472,14.09875153,237.92,237.84,2.0999]
[1732110907676,14.09875153,237.92,237.79,2.6]
[1732110907677,11.49875153,237.92,237.79,2.6]
[1732110908076,11.49875153,237.92,237.85,2.0999]
[1732110908376,11.49875153,237.92,237.79,2.6]
[1732110908672,10.17515153,237.89,237.79,2.6]
[1732110909272,12.27475153,237.89,237.79,2.6]
[1732110909477,10.17515153,237.89,237.79,2.6]
[1732110909674,2.4367,237.93,237.79,12.77515153]
[1732110909878,10.17515153,237.98,237.82,10.17515153]
[1732110910173,10.17515153,237.98,237.79,25.44565946]
[1732110910174,2.1,237.84,237.76,5.71141486]
[1732110910382,10.17515153,237.82,237.75,5.71141486]
[1732110910873,10.17515153,237.82,237.75,24.94635946]
[1732110911074,10.17515153,237.82,237.74,5.71141486]
[1732110911375,10.17515153,237.82,237.72,8.31141486]
[1732110911572,10.17515153,237.82,237.72,29.82553407]
[1732110911780,10.17515153,237.82,237.73,4.37987461]
[1732110912278,10.17515153,237.82,237.73,10.09128947]
[1732110912474,10.17515153,237.82,237.72,5.71141486]
[1732110912677,10.17515153,237.82,237.72,10.0889676]
[1732110913178,10.17515153,237.82,237.71,26.64965946]
[1732110913476,10.17515153,237.82,237.71,2.6]
[1732110913673,10.17515153,237.82,237.71,4.7011]
[1732110913674,2.1004,237.8,237.71,4.7011]
[1732110913878,10.17515153,237.82,237.71,4.7011]
[1732110914479,2.638,237.86,237.71,2.6]
[1732110914674,12.81315153,237.86,237.73,22.84565946]
[1732110914871,2.0999,237.85,237.76,2.1007]
[1732110915174,10.17515153,237.83,237.71,25.44565946]
[1732110915376,10.17515153,237.83,237.72,4.37793322]
[1732110915679,4.7,237.85,237.74,2.1008]
[1732110915869,2.6,237.85,237.74,2.1008]
[1732110916070,2.6,237.85,237.72,22.84565946]
[1732110916270,2.638,237.86,237.74,10.17515153]
[1732110916470,10.17515153,237.89,237.75,4.37760184]
[1732110916774,10.17515153,237.89,237.75,5.71141486]
[1732110916976,12.27475153,237.89,237.75,27.22189666]
[1732110917180,12.27475153,237.89,237.76,4.3762372]
[1732110917374,12.27455153,237.92,237.84,2.1]
[1732110917674,2.5689,237.94,237.8,10.17515153]
[1732110917875,2.5689,237.94,237.87,2.0997]
[1732110918283,10.17515153,237.92,237.79,5.71141486]
[1732110918473,10.17515153,237.92,237.78,5.71141486]
[1732110919181,2.0995,237.9,237.82,2.1002]
[1732110919482,12.27455153,237.92,237.83,2.1001]
[1732110919681,5.1689,237.94,237.82,2.6]
[1732110920777,2.5689,237.94,237.82,2.6]
[1732110921982,4.668,237.94,237.86,2.0997]
[1732110922183,2.5689,237.94,237.82,2.6]
[1732110922378,10.17515153,237.89,237.79,2.6]
[1732110922679,10.17515153,237.89,237.76,1.298]
[1732110922876,10.17515153,237.89,237.74,2.6]
[1732110923580,2.6,237.93,237.75,10.17515153]
[1732110923783,10.17515153,237.9,237.75,10.17515153]
[1732110924084,12.27465153,237.9,237.75,10.17515153]
[1732110924283,12.77515153,237.93,237.78,10.17515153]
[1732110924677,2.0994,237.91,237.83,2.1]
[1732110924983,2.5689,237.94,237.81,10.17515153]
[1732110925180,2.0993,237.93,237.85,2.0999]
[1732110925776,2.0993,237.93,237.86,2.0998]
[1732110925975,2.0993,237.93,237.81,10.17515153]
[1732110926386,2.5689,237.94,237.84,2.0999]
[1732110926587,2.5689,237.94,237.81,12.27691645]
[1732110926776,12.27405153,237.96,237.81,12.27691645]
[1732110926986,10.17515153,237.99,237.9,2.0994]
[1732110927185,10.17515153,237.99,237.86,2.6]
[1732110927489,2.3565,237.98,237.86,2.6]
[1732110928283,10.17515153,237.96,237.86,2.6]
[1732110929184,10.17515153,237.96,237.87,2.0997]
[1732110929185,2.0991,237.95,237.87,2.0997]
[1732110929583,0.2577,237.98,237.86,2.6]
[1732110930184,2.3565,237.98,237.9,2.0994]
[1732110930383,0.2577,237.98,237.9,2.0994]
[1732110930585,0.2577,237.98,237.86,2.6]
[1732110930780,2.0989,237.97,237.89,2.0995]
[1732110931590,0.2577,237.98,237.86,2.6]
[1732110931885,2.3565,237.98,237.9,2.0994]
[1732110932987,0.2577,237.98,237.87,10.17515153]
[1732110934785,10.17515153,238.02,237.87,10.17515153]
[1732110935087,10.17515153,237.99,237.86,2.6]
[1732110935390,10.17515153,237.99,237.91,2.0994]
[1732110936291,10.17515153,237.99,237.86,2.6]
[1732110936292,2.0986,238.0,237.87,10.17515153]
[1732110936489,13.92705153,238.07,237.9,10.17515153]
[1732110936893,10.17515153,238.04,237.95,2.099]
[1732110938387,2.0983,238.03,237.95,2.099]
[1732110938591,10.17515153,238.04,237.96,2.0989]
[1732110938788,12.27335153,238.04,237.96,2.0989]
[1732110938998,13.92705153,238.07,237.94,2.6]
[1732110939288,13.92705153,238.07,238.0,2.0986]
[1732110940189,13.92705153,238.07,238.02,2.0984]
[1732110940399,0.17068,238.09,238.0,2.6]
[1732110942190,10.17515153,238.07,237.99,2.6]
[1732110943090,12.27315153,238.07,237.99,4.6987]
[1732110943395,12.27315153,238.07,237.99,2.6]
[1732110943594,10.17515153,238.07,237.99,2.6]
[1732110943791,10.17515153,238.07,238.0,2.0985]
[1732110944196,2.0981,238.06,237.99,2.6]
[1732110944601,10.17515153,238.07,237.99,2.6]
[1732110944995,12.27315153,238.07,237.99,4.6986]
[1732110946394,12.27315153,238.07,237.99,2.0986]
[1732110947493,12.27315153,238.07,238.0,2.0986]
[1732110948090,12.27315153,238.07,237.95,5.0936]
[1732110948292,10.17515153,238.07,237.95,5.0936]
[1732110948893,2.0983,238.04,237.95,5.0936]
[1732110949097,2.0983,238.04,237.95,3.8575]
[1732110949500,2.0984,238.03,237.95,2.099]
[1732110949800,10.17515153,238.07,237.93,2.6]
[1732110949999,2.0982,238.04,237.96,2.0989]
[1732110951795,10.17515153,238.07,237.97,2.0988]
[1732110951995,2.0982,238.05,237.93,2.6]
[1732110952199,10.17515153,238.07,237.93,2.6]
[1732110952400,10.17515153,238.07,237.99,2.0986]
[1732110952595,12.27315153,238.07,237.93,14.87466335]
[1732110952798,12.27315153,238.07,238.0,2.0985]
[1732110952997,12.27315153,238.07,237.93,14.87466335]
[1732110953206,2.5644,238.08,237.93,14.87466335]
[1732110953403,1.43008,238.09,237.99,12.27375153]
[1732110953704,0.17068,238.09,237.93,2.09951182]
[1732110953905,10.34583153,238.09,238.0,2.0986]
[1732110954106,10.34583153,238.09,237.94,4.71714243]
[1732110955302,10.34583153,238.09,237.96,10.17515153]
[1732110955506,0.17068,238.09,237.96,10.17515153]
[1732110955708,0.17068,238.09,237.97,1.2652]
[1732110956011,0.17068,238.09,238.03,2.0983]
[1732110956509,2.0976,238.11,238.03,2.0983]
[1732110956711,2.0975,238.13,238.05,2.0981]
[1732110957107,10.17515153,238.15,238.05,2.0981]
[1732110957309,10.17515153,238.11,238.0,2.6]
[1732110959204,10.17515153,238.11,238.02,2.0983]
[1732110959205,2.0977,238.1,238.02,2.0983]
[1732110960416,10.17515153,238.07,237.97,1.2652]
[1732110960616,10.17515153,238.07,237.93,4.6757132]
[1732110961414,10.17515153,238.07,237.93,14.85086473]
[1732110961714,1.2432,238.09,237.96,10.17515153]
[1732110961913,12.75515153,238.1,237.96,10.17515153]
[1732110962109,2.0976,238.12,238.04,2.0982]
[1732110962307,10.17515153,238.13,238.0,2.58]
[1732110962614,3.7759,238.15,238.02,10.17515153]
[1732110963211,1.1959,238.15,238.02,10.17515153]
[1732110963411,2.0976,238.12,238.05,2.0981]
[1732110963713,1.1959,238.15,238.02,10.17515153]
[1732110964118,2.0974,238.13,238.06,2.098]
[1732110965410,2.0974,238.13,238.07,2.0979]
[1732110965721,1.2364,238.16,238.01,10.17515153]
[1732110966109,10.17515153,238.14,238.01,10.17515153]
[1732110966311,10.17515153,238.14,238.02,2.58]
[1732110966713,11.41435153,238.14,238.04,2.0982]
[1732110967213,2.0975,238.12,238.04,2.0982]
[1732110967413,2.0975,238.12,238.0,2.58]
[1732110967414,2.0975,238.12,238.03,2.0983]
[1732110967718,2.0975,238.12,238.0,2.58]
[1732110968314,13.51175153,238.14,238.01,10.17515153]
[1732110968519,1.2392,238.14,238.01,10.17515153]
[1732110969119,1.2392,238.14,238.04,2.0982]
[1732110969318,1.2364,238.16,238.01,10.17515153]
[1732110969623,1.2364,238.16,238.04,10.17515153]
[1732110969923,3.3336,238.16,238.08,2.0979]
[1732110970418,2.097,238.19,238.1,2.0976]
[1732110970620,10.17515153,238.2,238.07,10.17515153]
[1732110971120,4.1908,238.37,238.14,10.17515153]
[1732110971424,12.75515153,238.27,238.12,2.58]
[1732110971918,10.17515153,238.24,238.12,2.58]
[1732110972223,12.75515153,238.27,238.12,2.58]
[1732110972418,2.0966,238.24,238.16,2.0971]
[1732110972622,12.75515153,238.27,238.16,2.0971]
[1732110973422,12.75515153,238.27,238.18,2.097]
[1732110973921,12.75515153,238.27,238.12,2.58]
[1732110974124,10.17515153,238.27,238.14,10.17515153]
[1732110974418,3.7216,238.29,238.14,10.17515153]
[1732110974619,2.0962,238.27,238.19,2.0969]
[1732110974820,2.0962,238.27,238.14,10.17515153]
[1732110975920,2.0962,238.27,238.19,2.0969]
[1732110976116,2.0964,238.26,238.14,10.17515153]
[1732110976830,3.7216,238.29,238.17,2.097]
[1732110977124,10.17515153,238.27,238.12,2.58]
[1732110977727,12.60305153,238.29,238.14,10.17515153]
[1732110978030,10.17515153,238.32,238.24,2.0964]
[1732110978332,10.17515153,238.32,238.17,10.17515153]
[1732110978333,10.17515153,238.32,238.2,2.58]
[1732110979122,10.17515153,238.35,238.2,12.75515153]
[1732110979528,10.17515153,238.35,238.27,2.0961]
[1732110979927,10.17515153,238.35,238.2,12.75515153]
[1732110980124,1.2924,238.37,238.23,10.17515153]
[1732110980325,11.42755153,238.41,238.26,10.17515153]
[1732110980526,11.42755153,238.41,238.27,2.58]
[1732110981434,10.17515153,238.35,238.27,2.58]
[1732110981630,2.0958,238.32,238.23,2.0965]
[1732110981932,10.17515153,238.35,238.22,2.58]
[1732110982231,2.0957,238.33,238.25,2.0963]
[1732110982728,2.0957,238.34,238.25,2.0963]
[1732110982927,10.17515153,238.35,238.22,2.58]
[1732110983328,2.0957,238.34,238.25,2.0964]
[1732110983529,10.17515153,238.35,238.25,2.0964]
[1732110984030,2.0958,238.32,238.24,2.0965]
[1732110984630,2.0958,238.32,238.25,2.0964]
[1732110986932,10.17515153,238.35,238.22,2.58]
[1732110987130,2.0959,238.31,238.24,2.0965]
[1732110987435,10.17515153,238.35,238.22,2.58]
[1732110987631,2.0958,238.32,238.25,2.0964]
[1732110988836,2.0958,238.32,238.22,2.58]
[1732110988837,10.17515153,238.35,238.22,2.58]
[1732110989237,2.0958,238.32,238.25,2.0964]
[1732110989430,10.17515153,238.35,238.22,2.58]
[1732110989831,10.17515153,238.35,238.23,2.14284095]
[1732110990029,2.58,238.36,238.22,2.58]
[1732110990236,10.17515153,238.38,238.22,2.58]
[1732110990839,2.0957,238.33,238.23,2.05561768]
[1732110991636,2.58,238.39,238.19,2.4685]
[1732110991637,10.17515153,238.29,238.19,2.4685]
[1732110991840,2.0963,238.27,238.18,1.2173]
[1732110992043,10.17515153,238.29,238.18,1.2173]
[1732110992245,2.0967,238.22,238.12,2.5264]
[1732110992441,10.17515153,238.26,238.13,2.58]
[1732110992738,2.0966,238.23,238.15,2.0972]
[1732110992941,10.17515153,238.26,238.13,2.58]
[1732110993339,2.58,238.27,238.13,2.58]
[1732110993740,10.17515153,238.26,238.13,2.58]
[1732110994444,2.0967,238.22,238.13,4.6774]
[1732110994648,2.0967,238.22,238.13,2.58]
[1732110995547,12.75515153,238.26,238.13,2.58]
[1732110995948,12.75515153,238.26,238.15,2.0972]
[1732110995949,2.0966,238.23,238.15,2.0972]
[1732110996139,12.75515153,238.26,238.14,5.71141486]
[1732110996344,10.17515153,238.29,238.15,20.8636717]
[1732110996540,2.096,238.3,238.17,5.71141486]
[1732110996844,2.096,238.3,238.18,20.8636717]
[1732110997042,1.2102,238.31,238.19,7.55710531]
[1732110997347,1.2102,238.31,238.2,4.97670967]
[1732110997641,1.2102,238.31,238.22,2.0966]
[1732110998046,10.17515153,238.29,238.19,2.58]
[1732110999051,2.0963,238.26,238.19,4.6769]
[1732110999851,2.0962,238.27,238.2,2.0967]
[1732111000044,2.0962,238.27,238.19,2.58]
[1732111000749,2.0962,238.27,238.21,2.0967]
[1732111001046,10.17515153,238.29,238.18,5.71141486]
[1732111001254,10.17515153,238.29,238.17,2.0971]
[1732111001446,10.17515153,238.29,238.15,5.71141486]
[1732111001447,2.0966,238.23,238.15,5.71141486]
[1732111001646,10.17515153,238.29,238.16,4.9310883]
[1732111001950,10.17515153,238.29,238.19,2.0969]
[1732111002448,10.17515153,238.29,238.15,5.71141486]
[1732111002647,2.0965,238.25,238.2,2.0968]
[1732111002950,10.17515153,238.29,238.2,2.0968]
[1732111003248,2.0966,238.23,238.19,2.0969]
[1732111003649,2.0964,238.25,238.21,2.0967]
[1732111003850,10.17515153,238.29,238.16,5.71141486]
[1732111004047,10.17515153,238.29,238.15,5.71141486]
[1732111004247,2.0966,238.23,238.19,2.0969]
[1732111004847,2.0964,238.26,238.16,15.88656639]
[1732111005048,2.0964,238.26,238.17,10.6262322]
[1732111005250,2.0964,238.26,238.18,4.91481734]
[1732111005449,2.0964,238.26,238.19,4.91740203]
[1732111005750,2.0964,238.26,238.18,5.71141486]
[1732111006051,2.0964,238.26,238.22,22.84565946]
[1732111006254,2.0961,238.29,238.23,4.91732145]
[1732111006550,1.2102,238.31,238.22,22.84565946]
[1732111006755,1.2102,238.31,238.23,4.91696657]
[1732111006942,1.2102,238.31,238.22,24.94225946]
[1732111007248,10.17515153,238.26,238.18,5.71141486]
[1732111007447,2.58,238.25,238.17,2.0971]
[1732111007642,2.0967,238.22,238.14,22.84565946]
[1732111007848,2.58,238.25,238.17,2.097]
[1732111008452,2.0968,238.21,238.17,2.097]
[1732111009153,2.0969,238.19,238.15,2.0972]
[1732111009350,2.58,238.25,238.13,42.04177795]
[1732111009649,2.58,238.25,238.14,4.7990296]
[1732111009951,2.0968,238.21,238.13,22.84565946]
[1732111010146,2.0968,238.21,238.14,4.7983688]
[1732111010342,2.0968,238.2,238.15,2.0972]
[1732111010551,2.58,238.25,238.13,5.71141486]
[1732111010753,2.58,238.25,238.12,36.32708606]
[1732111010754,2.58,238.25,238.12,42.03850092]
[1732111010952,2.58,238.25,238.14,2.0973]
[1732111011449,10.17515153,238.23,238.12,7.80891486]
[1732111011646,10.17515153,238.23,238.11,22.84565946]
[1732111011849,2.097,238.19,238.12,4.79711236]
[1732111012050,2.097,238.19,238.13,2.0974]
[1732111012354,3.7847,238.22,238.13,2.0974]
[1732111012553,2.097,238.18,238.13,2.0974]
[1732111013448,3.7847,238.22,238.12,2.0975]
[1732111013449,2.0971,238.17,238.12,2.0975]
[1732111013650,2.58,238.19,238.1,2.3613333]
[1732111013954,2.58,238.19,238.08,2.3613333]
[1732111014254,2.58,238.19,238.06,17.1342446]
[1732111014255,10.17515153,238.17,238.06,2.3613333]
[1732111014456,10.17515153,238.14,238.05,2.3613333]
[1732111014656,6.4287,238.13,238.04,2.3613333]
[1732111015155,6.4287,238.13,238.04,4.4595333]
[1732111015354,6.4287,238.13,238.04,2.0982]
[1732111015553,3.8487,238.13,238.03,2.3613333]
[1732111015759,2.0976,238.12,238.07,2.098]
[1732111015953,3.8487,238.13,238.03,2.3613333]
[1732111016157,3.8487,238.13,238.09,2.0978]
[1732111016361,10.17515153,238.21,238.05,12.53648483]
[1732111016552,3.8424,238.2,238.05,10.17515153]
[1732111016756,2.0974,238.14,238.09,2.0977]
[1732111017352,2.0974,238.14,238.08,2.0979]
[1732111018856,3.8424,238.2,238.04,2.36400042]
[1732111018857,3.8424,238.2,238.05,10.17515153]
[1732111019053,1.2624,238.2,238.05,18.25056681]
[1732111019359,2.58,238.19,238.05,12.53915195]
[1732111019561,2.58,238.19,238.08,2.0978]
[1732111019854,2.58,238.19,238.05,2.36400042]
[1732111019855,10.17515153,238.18,238.05,2.36400042]
[1732111020058,10.17515153,238.18,238.04,2.36400042]
[1732111020359,10.17515153,238.18,238.06,2.098]
[1732111020862,10.17515153,238.18,238.08,2.0979]
[1732111021759,2.0972,238.17,238.11,2.0975]
[1732111021964,1.2624,238.2,238.11,2.0975]
[1732111021965,2.58,238.19,238.11,2.0975]
[1732111022866,2.0972,238.16,238.11,2.0975]
[1732111023255,1.2624,238.2,238.14,2.0973]
[1732111023460,2.097,238.18,238.06,9.02518645]
[1732111023661,2.097,238.18,238.06,11.38583668]
[1732111023962,1.2624,238.2,238.06,11.38583668]
[1732111024163,1.2624,238.2,238.06,3.60555023]
[1732111024164,10.17515153,238.18,238.06,3.60555023]
[1732111024372,10.17515153,238.18,238.04,9.33725834]
[1732111024560,10.17515153,238.18,238.03,10.65115834]
[1732111024758,2.0976,238.12,238.03,10.65115834]
[1732111025066,2.58,238.15,238.04,4.79298623]
[1732111025269,2.0974,238.14,238.04,4.79298623]
[1732111025464,2.0974,238.14,238.03,27.78540294]
[1732111025774,2.0974,238.14,238.08,2.0978]
[1732111026366,2.0973,238.15,238.09,2.0978]
[1732111028267,2.58,238.18,238.09,2.0978]
[1732111028466,2.0974,238.14,238.09,2.0978]
[1732111029770,2.58,238.18,238.06,2.098]
[1732111029969,12.75515153,238.18,238.04,22.84565946]
[1732111030271,12.75515153,238.18,238.05,20.68439393]
[1732111030472,12.75515153,238.18,238.05,18.24815937]
[1732111030766,2.0973,238.15,238.09,2.0978]
[1732111031367,2.0974,238.14,238.07,2.0979]
[1732111031564,2.58,238.18,238.05,12.53698886]
[1732111031763,2.58,238.18,238.05,10.17515153]
[1732111031966,2.0975,238.13,238.07,2.0979]
[1732111032167,12.75515153,238.18,238.03,25.42565946]
[1732111032364,12.75515153,238.18,238.04,7.15919822]
[1732111032665,12.75515153,238.18,238.03,5.71141486]
[1732111032666,12.75515153,238.18,238.06,2.098]
[1732111032968,12.75515153,238.18,238.03,8.07328661]
[1732111033168,12.75515153,238.18,238.07,2.098]
[1732111033569,2.0973,238.15,238.07,2.098]
[1732111033871,12.75515153,238.18,238.07,2.098]
[1732111034067,12.75515153,238.18,238.03,8.07328661]
[1732111034270,2.0975,238.13,238.08,2.0979]
[1732111034470,2.0975,238.13,238.03,8.07328661]
[1732111034471,2.58,238.18,238.05,10.17515153]
[1732111034673,2.58,238.18,238.04,8.07328661]
[1732111034674,12.75515153,238.18,238.04,8.07328661]
[1732111034867,12.75515153,238.18,238.03,2.36187175]
[1732111035169,10.17515153,238.12,238.02,5.71141486]
[1732111035473,15.17,238.18,237.98,22.84565946]
[1732111035474,10.17515153,238.09,237.98,22.84565946]
[1732111035668,4.9885,238.11,237.97,5.71141486]
[1732111035669,10.17515153,238.06,237.97,5.71141486]
[1732111035867,10.17515153,238.06,237.96,5.71141486]
[1732111036173,10.17515153,238.06,237.95,2.3649875]
[1732111036469,10.17515153,238.06,237.93,11.46075153]
[1732111036470,2.0986,238.0,237.92,5.71141486]
[1732111036670,10.17515153,238.06,237.92,5.71141486]
[1732111036873,2.0985,238.01,237.95,2.099]
[1732111037680,2.0983,238.04,237.98,2.0987]
[1732111038576,3.6416,238.11,238.06,2.0981]
[1732111038577,2.4085,238.11,238.06,2.0981]
[1732111038771,2.4085,238.11,238.0,10.17515153]
[1732111038772,2.58,238.15,238.0,33.02081099]
[1732111038976,2.58,238.15,238.01,12.87232935]
[1732111039275,2.58,238.15,238.03,15.88656639]
[1732111039476,2.58,238.15,238.04,5.71141486]
[1732111039979,2.58,238.15,238.08,2.0978]
[1732111039980,2.0974,238.14,238.08,2.0978]
[1732111040283,2.58,238.15,238.04,8.07192825]
[1732111040586,1.2669,238.18,238.04,30.00130552]
[1732111040797,1.2669,238.18,238.04,8.07192825]
[1732111040981,1.2669,238.18,238.03,35.60081099]
[1732111041182,1.2669,238.18,238.07,2.0979]
[1732111041384,1.2669,238.18,238.04,5.71141486]
[1732111041683,1.2669,238.18,238.04,10.51609572]
[1732111041883,10.17515153,238.16,238.06,2.098]
[1732111042379,10.17515153,238.16,238.03,35.60081099]
[1732111042579,2.0976,238.12,238.05,2.0981]
[1732111042782,2.0976,238.12,238.03,35.60081099]
[1732111042983,10.17515153,238.16,238.04,4.80543054]
[1732111043379,2.0974,238.13,238.06,2.098]
[1732111043786,1.2669,238.18,238.04,5.71141486]
[1732111043980,2.0973,238.15,238.08,2.0978]
[1732111044184,2.58,238.2,238.06,10.17515153]
[1732111044384,2.0974,238.14,238.07,6.90455837]
[1732111044591,2.0974,238.14,238.05,5.71141486]
[1732111044779,2.0974,238.14,238.05,10.52038978]
[1732111045286,2.0974,238.14,238.08,2.0979]
[1732111046082,10.17515153,238.16,238.05,5.71141486]
[1732111046285,10.17515153,238.16,238.03,22.84565946]
[1732111046482,10.17515153,238.16,238.04,4.81158227]
[1732111046991,2.0977,238.11,238.04,6.90968227]
[1732111047193,2.0977,238.11,238.04,2.0981]
[1732111047588,2.0977,238.11,238.04,7.80951486]
[1732111048391,2.0977,238.11,238.04,2.0981]
[1732111048591,2.0977,238.11,238.05,6.90935163]
[1732111048888,2.0977,238.11,238.05,2.0981]
[1732111049895,2.0978,238.09,238.04,2.36840693]
[1732111050094,10.17515153,238.13,238.02,22.84565946]
[1732111050294,2.58,238.14,238.02,8.08064719]
[1732111050295,10.17515153,238.1,238.02,8.08064719]
[1732111050589,10.17515153,238.07,237.96,22.84565946]
[1732111050796,2.58,238.06,237.96,5.71141486]
[1732111050991,2.58,238.06,237.96,8.08344334]
[1732111051195,2.58,238.06,237.96,2.37202848]
[1732111051395,2.58,238.06,237.95,5.71141486]
[1732111051597,2.58,238.06,237.94,22.84565946]
[1732111051796,2.58,238.06,237.95,7.18157317]
[1732111051997,2.58,238.06,237.94,22.84565946]
[1732111052191,2.58,238.06,237.95,7.18088669]
[1732111052392,2.58,238.06,237.96,4.80910091]
[1732111052600,2.5481,238.12,237.98,10.17515153]
[1732111052793,2.5481,238.12,238.0,5.71141486]
[1732111052993,10.17515153,238.15,238.01,7.17717558]
[1732111053192,10.17515153,238.15,238.02,2.37082947]
[1732111053394,2.0976,238.12,238.06,2.0981]
[1732111053595,10.17515153,238.15,238.06,2.0981]
[1732111053797,2.0975,238.13,238.06,2.0981]
[1732111054000,10.17515153,238.15,238.02,5.71141486]
[1732111054202,2.3989,238.18,238.03,12.88667306]
[1732111054203,12.57405153,238.18,238.03,12.88667306]
[1732111054400,15.15405153,238.18,238.04,7.17446036]
[1732111054696,12.57405153,238.18,238.05,2.37014386]
[1732111054996,12.57405153,238.18,238.04,5.71141486]
[1732111055194,12.57405153,238.18,238.05,2.37082901]
[1732111055398,2.0973,238.15,238.03,22.84565946]
[1732111055700,2.0973,238.15,238.04,7.17590248]
[1732111056001,2.0973,238.15,238.04,12.88731734]
[1732111056300,2.0973,238.15,238.09,2.0978]
[1732111056495,2.0972,238.16,238.09,2.0978]
[1732111057099,12.57405153,238.18,238.05,2.58]
[1732111057296,10.17515153,238.18,238.06,2.37247235]
[1732111057491,10.17515153,238.18,238.07,2.37247235]
[1732111057699,10.17515153,238.15,238.05,5.71141486]
[1732111057898,10.17515153,238.15,238.05,2.0981]
[1732111058202,2.0976,238.12,238.05,2.0981]
[1732111058903,2.0976,238.12,238.06,2.098]
[1732111059404,2.0976,238.12,238.04,2.37389801]
[1732111059405,2.0977,238.11,238.04,2.37389801]
[1732111059600,2.0977,238.11,238.02,24.09285946]
[1732111059904,2.0977,238.11,238.03,7.18259937]
[1732111060105,2.0977,238.1,238.04,4.47256737]
[1732111060303,2.0977,238.1,238.04,2.0982]
[1732111061205,10.17515153,238.12,238.04,2.0982]
[1732111061405,2.0976,238.11,238.04,2.0982]
[1732111063104,2.0975,238.12,238.05,2.0981]
[1732111064106,10.17515153,238.15,238.05,2.0981]
[1732111064418,2.0976,238.11,238.05,2.0981]
[1732111065511,10.17515153,238.15,238.04,2.0982]
[1732111066510,2.0977,238.11,238.04,2.0982]
[1732111066911,2.0977,238.11,238.03,5.71141486]
[1732111067113,2.0977,238.11,238.05,2.0981]
[1732111072417,2.0977,238.11,238.04,2.0982]
[1732111072613,10.17515153,238.15,238.05,2.37618439]
[1732111072814,2.0977,238.1,238.04,2.0982]
[1732111073215,10.17515153,238.15,238.05,2.0981]
[1732111073417,2.0975,238.12,238.05,2.0981]
[1732111073620,10.17515153,238.15,238.05,2.0981]
[1732111074014,2.0975,238.12,238.05,2.0981]
[1732111074214,10.17515153,238.15,238.05,2.0981]
[1732111074411,10.17515153,238.12,238.04,5.71141486]
[1732111074715,2.0977,238.1,238.03,42.11770636]
[1732111074916,2.0977,238.1,238.04,12.90634415]
[1732111075116,2.0977,238.1,238.05,2.37689942]
[1732111075314,2.0977,238.1,238.03,42.11786115]
[1732111075517,2.0977,238.1,238.04,7.19504773]
[1732111075711,2.0977,238.1,238.04,5.71141486]
[1732111076115,2.0977,238.1,238.05,4.47514831]
[1732111076318,2.0976,238.11,238.05,4.47514831]
[1732111076620,10.17515153,238.12,238.05,2.0981]
[1732111076922,12.59,238.29,238.07,15.88656639]
[1732111077123,10.17515153,238.22,238.08,12.90211067]
[1732111077317,10.17515153,238.22,238.09,2.37556898]
[1732111077524,2.0972,238.16,238.08,5.71141486]
[1732111077722,2.0972,238.16,238.09,2.37466]
[1732111077918,12.75515153,238.22,238.08,42.09754325]
[1732111078120,12.75515153,238.22,238.11,2.0976]
[1732111078823,2.0972,238.17,238.12,2.0975]
[1732111080125,2.0972,238.17,238.13,2.0974]
[1732111080325,12.75515153,238.22,238.09,5.71141486]
[1732111080527,12.75515153,238.22,238.1,2.37399866]
[1732111080733,2.0969,238.19,238.14,2.0973]
[1732111080919,10.17515153,238.25,238.1,18.26077645]
[1732111081126,10.17515153,238.25,238.11,8.46901594]
[1732111081127,12.73515153,238.25,238.11,8.46901594]
[1732111081319,2.0967,238.22,238.17,2.0971]
[1732111081518,12.73515153,238.25,238.12,4.93421006]
[1732111081725,12.73515153,238.25,238.12,2.56]
[1732111081931,2.0968,238.2,238.15,2.0973]
[1732111082631,12.73515153,238.25,238.12,4.6575]